Workbook

Sheet Ｒ７年度 質問紙入力シート
A1: 領域名 | B1: 問番号 | C1: 質問内容 | D1: 全国肯定的回答 | F1: 全国 肯定的回答（小計） | G1: 全国 肯定的回答（合計） （Ｂ） | H1: 本校肯定的回答 | J1: 本校 肯定的回答（小計） | K1: 本校 肯定的回答（合計） | L1: （Ｂ）を１とした場合の本校の様子
D2: 1 | E2: 2 | F2: 1+2 | H2: 1 | I2: 2 | J2: 1+2
A3: 基本的生活習慣 | B3: （1） | C3: 朝食を毎日食べていますか | D3: 83.3 | E3: 10.4 | F3: =D3+E3 -> 93.7 | G3: =SUM(F3:F6) -> 346.6 | H3: 74.6 | I3: 15.9 | J3: =H3+I3 -> 90.5 | K3: =SUM(J3:J6) -> 350.8 | L3: =K3/G3 -> 1.012117715
B4: （2） | C4: 毎日、同じくらいの時刻に寝ていますか | D4: 38.9 | E4: 43 | F4: 81.9 | H4: 46 | I4: 36.5 | J4: =H4+I4 -> 82.5 | N4: 黄色のセル | P4: に貴校の数値を入力してください。
B5: （3） | C5: 毎日、同じくらいの時刻に起きていますか | D5: 55.6 | E5: 35.4 | F5: 91 | H5: 66.7 | I5: 28.6 | J5: =H5+I5 -> 95.3
B6: (71) | C6: 健康にすごすために、授業で学習したことや保健室の先生などから教えられたことを、普段の生活に役立てていますか | D6: 39 | E6: 41 | F6: 80 | H6: 36.5 | I6: 46 | J6: 82.5
A7: 自己有用感 | B7: (5) | C7: 自分には、よいところがあると思いますか | D7: 47.3 | E7: 39.6 | F7: 86.9 | G7: =SUM(F7:F9) -> 262.2 | H7: 34.9 | I7: 47.6 | J7: 82.5 | K7: =SUM(J7:J9) -> 252.3 | L7: =K7/G7 -> 0.9622425629
B8: (6) | C8: 先生は、あなたのよいところを認めてくれていると思いますか | D8: 55.3 | E8: 36.9 | F8: 92.2 | H8: 49.2 | I8: 44.4 | J8: =H8+I8 -> 93.6
B9: (7) | C9: 将来の夢や目標を持っていますか | D9: 60.7 | E9: 22.4 | F9: 83.1 | H9: 50.8 | I9: 25.4 | J9: 76.2
A10: 規範意識 | B10: (8) | C10: 人が困っているときは、進んで助けていますか | D10: 49.2 | E10: 44.5 | F10: 93.7 | G10: =SUM(F10:F12) -> 287.3 | H10: 58.7 | I10: 36.5 | J10: 95.2 | K10: =SUM(J10:J12) -> 288.9 | L10: =K10/G10 -> 1.005569092
B11: (9) | C11: いじめは、どんな理由があってもいけないことだと思いますか | D11: 81.4 | E11: 15.8 | F11: 97.2 | H11: 84.1 | I11: 15.9 | J11: 100
B12: (11) | C12: 人の役に立つ人間になりたいと思いますか | D12: 73.7 | E12: 22.7 | F12: 96.4 | H12: 76.2 | I12: 17.5 | J12: 93.7
A13: 主体的な学び | B13: (31) | C13: ５年生までに受けた授業で、自分の考えを発表する機会では、自分の考えがうまく伝わるよう、資料や文章、話の組立てなどを工夫して発表していましたか | D13: 26.8 | E13: 41.8 | F13: 68.6 | G13: =SUM(F13:F15) -> 226.7 | H13: 23.8 | I13: 28.6 | J13: 52.4 | K13: =SUM(J13:J15) -> 187.4 | L13: =K13/G13 -> 0.8266431407
B14: (32) | C14: ５年生までに受けた授業では、課題の解決に向けて、自分で考え、自分から取り組んでいましたか | D14: 29 | E14: 51.3 | F14: 80.3 | H14: 27 | I14: 41.3 | J14: 68.3
B15: (33) | C15: ５年生までに受けた授業では、各教科などで学んだことを生かしながら、自分の考えをまとめる活動を行っていましたか | D15: 28.7 | E15: 49.1 | F15: =D15+E15 -> 77.8 | H15: 27 | I15: 39.7 | J15: 66.7
A16: 対話的な学び | B16: (35) | C16: 学級の友達との間で話し合う活動を通じて、自分の考えを深めたり、新たな考え方に気付いたりすることができていますか | D16: 40.9 | E16: 44 | F16: =D16+E16 -> 84.9 | G16: =SUM(F16:F19) -> 337 | H16: 38.1 | I16: 44.4 | J16: 82.5 | K16: =SUM(J16:J19) -> 325.4 | L16: =K16/G16 -> 0.965578635
B17: (41) | C17: あなたの学級では、学級生活をよりよくするために学級会で話し合い、互いの意見のよさを生かして解決方法を決めていますか | D17: 36.5 | E17: 46.8 | F17: =D17+E17 -> 83.3 | H17: 25.4 | I17: 54 | J17: 79.4
B18: (42) | C18: 学級活動における学級での話合いを生かして、今、自分が努力すべきことを決めて取り組んでいますか | D18: 34 | E18: 46.8 | F18: =D18+E18 -> 80.8 | H18: 36.5 | I18: 42.9 | J18: 79.4
B19: (43) | C19: 道徳の授業では、自分の考えを深めたり、学級やグループで話し合ったりする活動に取り組んでいますか | D19: 47.3 | E19: 40.7 | F19: =D19+E19 -> 88 | H19: 47.6 | I19: 36.5 | J19: 84.1
A20: 国語への関心 | B20: (45) | C20: 国語の勉強は好きですか | D20: 24.1 | E20: 34.2 | F20: 58.3 | G20: =SUM(F20:F23) -> 231.5 | H20: 17.5 | I20: 30.2 | J20: =H20+I20 -> 47.7 | K20: =SUM(J20:J23) -> 215.9 | L20: =K20/G20 -> 0.9326133909
B21: × | C21: 国語の勉強は大切だと思いますか | F21: 0 | J21: =H21+I21 -> 0
B22: (46) | C22: 国語の授業の内容はよく分かりますか | D22: 35.9 | E22: 46.9 | F22: 82.8 | H22: 36.5 | I22: 44.4 | J22: 80.9
B23: (47) | C23: 国語の授業で学習したことは、将来、社会に出たときに役に立つと思いますか | D23: 55.9 | E23: 34.5 | F23: 90.4 | H23: 61.9 | I23: 25.4 | J23: 87.3
A24: 算数への関心 | B24: (53) | C24: 算数の勉強は好きですか | D24: 33.7 | E24: 24.2 | F24: =D24+E24 -> 57.9 | G24: =SUM(F24:F27) -> 227.8 | H24: 39.7 | I24: 20.6 | J24: 60.3 | K24: =SUM(J24:J27) -> 236.4 | L24: =K24/G24 -> 1.037752414
B25: × | C25: 算数の勉強は大切だと思いますか | F25: =D25+E25 -> 0 | J25: 0
B26: (54) | C26: 算数の授業の内容はよく分かりますか | D26: 41.7 | E26: 36.6 | F26: =D26+E26 -> 78.3 | H26: 38.1 | I26: 46 | J26: 84.1
B27: (55) | C27: 算数の授業で学習したことは、将来、社会に出たときに役に立つと思いますか | D27: 66.1 | E27: 25.5 | F27: =D27+E27 -> 91.6 | H27: 69.8 | I27: 22.2 | J27: =H27+I27 -> 92

Sheet Ｒ７年度 【算数】学校情報入力シート
A1: 行政番号（3ケタ） | B1: 163 | C1: =VLOOKUP(B1,学校番号!A1:B65,2) -> 南小岩第二小学校
B2: ※↑行政番号を入力して下さい。これ以降の学校名は自動で表記されます。
A3: 算数 | B3: 全国 平均正答率（％）（Ａ） | C3: 本校 平均正答率（％） | D3: （Ａ）を１とした場合の本校の様子 | E3: 東京都 平均正答率（％） | F3: 江戸川区 平均正答率（％） | I3: 黄色のセル | K3: に貴校の数値を入力してください。
B4: 58 | C4: 54 | D4: =C4/B4 -> 0.9310344828 | E4: 64 | F4: 61
A8: 正答数 | B8: 0問 | C8: 1問 | D8: 2問 | E8: 3問 | F8: 4問 | G8: 5問 | H8: 6問 | I8: 7問 | J8: 8問 | K8: 9問 | L8: 10問 | M8: 11問 | N8: 12問 | O8: 13問 | P8: 14問 | Q8: 15問 | R8: 16問
A9: =C1 -> 南小岩第二小学校 | B9: 0.044 | C9: 0 | D9: 0.029 | E9: 0.029 | F9: 0.029 | G9: 0.103 | H9: 0.044 | I9: 0.088 | J9: 0.088 | K9: 0.118 | L9: 0.088 | M9: 0.103 | N9: 0.044 | O9: 0.059 | P9: 0.059 | Q9: 0.044 | R9: 0.029
A10: 江戸川区（区立） | B10: 0.011 | C10: 0.02 | D10: 0.028 | E10: 0.035 | F10: 0.042 | G10: 0.044 | H10: 0.055 | I10: 0.058 | J10: 0.069 | K10: 0.075 | L10: 0.076 | M10: 0.081 | N10: 0.087 | O10: 0.091 | P10: 0.091 | Q10: 0.08 | R10: 0.056
A11: 東京都（公立） | B11: 0.011 | C11: 0.017 | D11: 0.021 | E11: 0.028 | F11: 0.035 | G11: 0.041 | H11: 0.05 | I11: 0.059 | J11: 0.067 | K11: 0.072 | L11: 0.077 | M11: 0.083 | N11: 0.085 | O11: 0.089 | P11: 0.098 | Q11: 0.096 | R11: 0.07
A12: 全国（公立） | B12: 0.011 | C12: 0.021 | D12: 0.03 | E12: 0.039 | F12: 0.046 | G12: 0.054 | H12: 0.062 | I12: 0.07 | J12: 0.077 | K12: 0.082 | L12: 0.086 | M12: 0.086 | N12: 0.084 | O12: 0.08 | P12: 0.073 | Q12: 0.062 | R12: 0.038
A14: 平均正答数
A15: =C1 -> 南小岩第二小学校 | B15: 8.7
A16: 江戸川区（区立） | B16: 9.8
A17: 東京都（公立） | B17: 10.2
A18: 全国（公立） | B18: 9.3
B20: =C1 -> 南小岩第二小学校 | C20: 江戸川区（区立） | D20: 東京都（公立） | E20: 全国（公立）
A21: 知識・技能 | B21: 0.636 | C21: 0.687 | D21: 0.709 | E21: 0.655
A22: 思考・判断・表現 | B22: 0.424 | C22: 0.515 | D22: 0.544 | E22: 0.483
B24: =C1 -> 南小岩第二小学校 | C24: 江戸川区（区立） | D24: 東京都（公立） | E24: 全国（公立）
A25: 数と計算 | B25: 0.592 | C25: 0.656 | D25: 0.683 | E25: 0.623
A26: 図形 | B26: 0.54 | C26: 0.589 | D26: 0.612 | E26: 0.562
A27: 測定 | B27: 0.478 | C27: 0.562 | D27: 0.605 | E27: 0.548
A28: 変化と関係 | B28: 0.525 | C28: 0.607 | D28: 0.649 | E28: 0.575
A29: データの活用 | B29: 0.594 | C29: 0.648 | D29: 0.676 | E29: 0.626
A31: R７年度 四分位
A32: 算 数 | B32: Ａ層 | C32: Ｂ層 | D32: Ｃ層 | E32: Ｄ層
B33: 14～16問 | C33: 11～13問 | D33: 7～10問 | E33: 0～6問
A34: =C1 -> 南小岩第二小学校 | B34: 0.132 | C34: 0.206 | D34: 0.382 | E34: 0.28
A35: 江戸川区（区立） | B35: 0.227 | C35: 0.259 | D35: 0.279 | E35: 0.235
A36: 東京都（公立） | B36: 0.264 | C36: 0.257 | D36: 0.276 | E36: 0.203
A37: 全国（公立） | B37: 0.173 | C37: 0.25 | D37: 0.314 | E37: 0.263
A39: 各層の割合 R６年度・R７年度推移
B40: R６ | C40: R７
A41: A層 | B41: 0.209 | C41: =B34 -> 0.132
A42: B層 | B42: 0.396 | C42: =C34 -> 0.206
A43: C層 | B43: 0.146 | C43: =D34 -> 0.382
A44: D層 | B44: 0.249 | C44: =E34 -> 0.28
A45: ※入力確認式 | B45: =SUM(B41:B44) -> 1 | C45: =SUM(C41:C44) -> 1
B46: =100%-B45 -> 0 | C46: =100%-C45 -> 0

Sheet 【算数】結果分析表ＨＰ公開ＰＤＦ用
B8: 平均正答数
C9: ='Ｒ７年度 【算数】学校情報入力シート'!C1&"：" -> 南小岩第二小学校： | F9: ='Ｒ７年度 【算数】学校情報入力シート'!B15&"問" -> 8.7問 | H9: 江戸川区（区立）： | I9: ='Ｒ７年度 【算数】学校情報入力シート'!B16&"問" -> 9.8問
E10: 東京都（公立）： | F10: ='Ｒ７年度 【算数】学校情報入力シート'!B17&"問" -> 10.2問 | H10: 全国（公立） ： | I10: ='Ｒ７年度 【算数】学校情報入力シート'!B18&"問" -> 9.3問
B27: 【平均正答率の差】
B28: ='Ｒ７年度 【算数】学校情報入力シート'!C1 -> 南小岩第二小学校 | E28: ='Ｒ７年度 【算数】学校情報入力シート'!C4&"%" -> 54%
B29: 江戸川区（区立） | E29: ='Ｒ７年度 【算数】学校情報入力シート'!F4&"%" -> 61%
B30: 東京都（公立） | E30: ='Ｒ７年度 【算数】学校情報入力シート'!E4&"%" -> 64%
B31: 全国（公立） | E31: ='Ｒ７年度 【算数】学校情報入力シート'!B4&"%" -> 58%
B32: 都との差（ポイント） | E32: ='Ｒ７年度 【算数】学校情報入力シート'!C4-'Ｒ７年度 【算数】学校情報入力シート'!E4 -> -10
C38: 上位 | G38: 下位
K55: 《現状把握》
K56: ●各習熟度層の割合とその課題・取り組みについて 全国、東京都、江戸川区の割合と比べて、AB層の割合が著しく低い。本来であればAB層合わせておおよそ５０％であるべきだが、本校は33.8％であり、これは３０人クラスで１５人のAB層が望まれるところの、１０人しかAB層がいないという状況である。 本校の重点課題はCD層の学力の底上げである。EDOスク（旧放課後補習教室）においては、最大定員まで参加を募るべく、算数の学習に不安がある児童の保護者へ参加の呼びかけを行っている。毎週金曜日放課後に「すっきりタイム」と称し、終わっていなかったり、身に付いていなかったりした課題を、個別で担任と学習を進める取り組みを行っている。
K66: 《学校の取組》
K67: ・教員の指導力向上
K68: ●授業力向上・今年度校内研究授業について 本年度の校内の授業研究課題を「ユニバーサルデザインを活用した授業づくり」と設定している。A層からD層の児童全員が、授業を通して豊かな学びを得られるよう、日々授業改善を行っている。また、全学級全担任が校内研究授業を行い、協議会を通して、より良い授業となるよう研究を進めている。
K75: ・基礎学力の保障
K76: ●習熟度別授業実施について 毎単元レディネス（学習前定着度）テストを実施し、学年の学級数＋１の学習クラス数を確保して、少人数かつ学力の実態に合わせた授業を行っている。 ●基礎計算力を高めるために 毎学期１，２回、計算能力向上のための取り組みである「がんばルンバ選手権」を行い、四則計算や筆算を復習できる機会を設けている。
K83: ・学習習慣の確立
K84: ●自主学習の習慣化、手軽に予習復習できる環境について 毎学期「家庭学習強化週間」を２週間実施して、自宅での自主学習に取り組ませている。加えて、普段からタブレット学習を推奨し、学習アプリ「ミライシード・ドリルパーク」を活用して、児童自身で簡単に授業の予習復習ができるよう指導している。
B86: 《チャートの特徴》
B87: 主体的に学ぼうとする態度に関する質問に対して、全国平均に対して否定的な回答の割合が高かった。規範意識や対話的な学びに対しての回答は全国平均と同等であるため、お互い学び合うことは苦ではない様子であるが、自ら学ぼうとする姿勢に問題があると考える。
K91: ・AB層の育成
K92: ●AB層の個人の習熟に合った学習環境の設定について 先述した習熟度別の算数学習クラスのAB層の授業においては、発展的な学習問題を扱い、１授業あたりの解く問題量も増やしている。 習熟度別に学習学級を分ける際、Aクラスの児童数を若干数減らし、A層の児童がのびのびと発展的な学習に取り組むことができる環境をつくっている。同時に、B層下位の児童がAクラスで学んでしまうことによって、無理矢理A層の児童の学習レベルに合わせて学習してしまい、学習内容を取りこぼしてしまう危険性も防止している。
B93: 《家庭・地域への働きかけ》
B94: 毎週水曜日の朝活動時に「基礎タイム」と称し、算数プリントを中心とした学習時間を設けている。その際、保護者に丸付けや個別学習の補助のボランティアをお願いしている。 夏期の保護者面談において、１学期の学習の内容や児童の習熟の様子がわかる学習カルテを配布し、学習の実態がよりご家庭に伝わるような取り組みを行っている。

Sheet Ｒ７年度 【国語】学校情報入力シート
A1: 行政番号（3ケタ） | B1: 163 | C1: =VLOOKUP(B1,学校番号!A1:B65,2) -> 南小岩第二小学校
B2: ※↑行政番号を入力して下さい。これ以降の学校名は自動で表記されます。
A3: 国語 | B3: 全国 平均正答率（％）（Ａ） | C3: 本校 平均正答率（％） | D3: （Ａ）を１とした場合の本校の様子 | E3: 東京都 平均正答率（％） | F3: 江戸川区 平均正答率（％） | I3: 黄色のセル | K3: に貴校の数値を入力してください。
B4: 66.8 | C4: 65 | D4: =C4/B4 -> 0.9730538922 | E4: 70 | F4: 68
A8: 正答数 | B8: 0問 | C8: 1問 | D8: 2問 | E8: 3問 | F8: 4問 | G8: 5問 | H8: 6問 | I8: 7問 | J8: 8問 | K8: 9問 | L8: 10問 | M8: 11問 | N8: 12問 | O8: 13問 | P8: 14問
A9: =C1 -> 南小岩第二小学校 | B9: 0.015 | C9: 0 | D9: 0.029 | E9: 0.029 | F9: 0.029 | G9: 0.044 | H9: 0.044 | I9: 0.118 | J9: 0.074 | K9: 0.059 | L9: 0.147 | M9: 0.176 | N9: 0.103 | O9: 0.103 | P9: 0.029
A10: 江戸川区（区立） | B10: 0.007 | C10: 0.01 | D10: 0.016 | E10: 0.021 | F10: 0.029 | G10: 0.038 | H10: 0.055 | I10: 0.07 | J10: 0.087 | K10: 0.108 | L10: 0.122 | M10: 0.136 | N10: 0.125 | O10: 0.111 | P10: 0.063
A11: 東京都（公立） | B11: 0.008 | C11: 0.007 | D11: 0.011 | E11: 0.017 | F11: 0.024 | G11: 0.036 | H11: 0.048 | I11: 0.063 | J11: 0.083 | K11: 0.101 | L11: 0.123 | M11: 0.135 | N11: 0.14 | O11: 0.126 | P11: 0.076
A12: 全国（公立） | B12: 0.006 | C12: 0.007 | D12: 0.013 | E12: 0.021 | F12: 0.03 | G12: 0.043 | H12: 0.058 | I12: 0.076 | J12: 0.096 | K12: 0.113 | L12: 0.127 | M12: 0.133 | N12: 0.124 | O12: 0.099 | P12: 0.054
A14: 平均正答数
A15: =C1 -> 南小岩第二小学校 | B15: 9.1
A16: 江戸川区（区立） | B16: 9.5
A17: 東京都（公立） | B17: 9.8
A18: 全国（公立） | B18: 9.4
B20: =C1 -> 南小岩第二小学校 | C20: 江戸川区（区立） | D20: 東京都（公立） | E20: 全国（公立）
A21: 知識・技能 | B21: 0.695 | C21: 0.744 | D21: 0.766 | E21: 0.745
A22: 思考・判断・表現 | B22: 0.631 | C22: 0.648 | D22: 0.671 | E22: 0.638
B24: =C1 -> 南小岩第二小学校 | C24: 江戸川区（区立） | D24: 東京都（公立） | E24: 全国（公立）
A25: 話すこと・聞くこと | B25: 0.637 | C25: 0.681 | D25: 0.699 | E25: 0.663
A26: 書くこと | B26: 0.721 | C26: 0.708 | D26: 0.724 | E26: 0.695
A27: 読むこと | B27: 0.559 | C27: 0.578 | D27: 0.61 | E27: 0.575
A30: R７年度 四分位
A31: 国 語 | B31: Ａ層 | C31: Ｂ層 | D31: Ｃ層 | E31: Ｄ層
B32: 12～14問 | C32: 10～11問 | D32: 8～9問 | E32: 0～7問
A33: =C1 -> 南小岩第二小学校 | B33: 0.235 | C33: 0.323 | D33: 0.133 | E33: 0.309
A34: 江戸川区（区立） | B34: 0.3 | C34: 0.258 | D34: 0.195 | E34: 0.247
A35: 東京都（公立） | B35: 0.344 | C35: 0.258 | D35: 0.184 | E35: 0.214
A36: 全国（公立） | B36: 0.277 | C36: 0.26 | D36: 0.209 | E36: 0.254
A38: 各層の割合 R６年度・R７年度推移
B39: R６ | C39: R７
A40: A層 | B40: 0.25 | C40: =B33 -> 0.235
A41: B層 | B41: 0.354 | C41: =C33 -> 0.323
A42: C層 | B42: 0.188 | C42: =D33 -> 0.133
A43: D層 | B43: 0.208 | C43: =E33 -> 0.309
A44: ※入力確認式 | B44: =SUM(B40:B43) -> 1 | C44: =SUM(C40:C43) -> 1
B45: =100%-B44 -> 0 | C45: =100%-C44 -> 0

Sheet 【国語】結果分析表ＨＰ公開ＰＤＦ用
B8: 平均正答数
C9: ='Ｒ７年度 【国語】学校情報入力シート'!C1&"：" -> 南小岩第二小学校： | F9: ='Ｒ７年度 【国語】学校情報入力シート'!B15&"問" -> 9.1問 | H9: 江戸川区（区立）： | I9: ='Ｒ７年度 【国語】学校情報入力シート'!B16&"問" -> 9.5問
E10: 東京都（公立）： | F10: ='Ｒ７年度 【国語】学校情報入力シート'!B17&"問" -> 9.8問 | H10: 全国（公立） ： | I10: ='Ｒ７年度 【国語】学校情報入力シート'!B18&"問" -> 9.4問
B27: 【平均正答率の差】
B28: ='Ｒ７年度 【国語】学校情報入力シート'!C1 -> 南小岩第二小学校 | E28: ='Ｒ７年度 【国語】学校情報入力シート'!C4&"%" -> 65%
B29: 江戸川区（区立） | E29: ='Ｒ７年度 【国語】学校情報入力シート'!F4&"%" -> 68%
B30: 東京都（公立） | E30: ='Ｒ７年度 【国語】学校情報入力シート'!E4&"%" -> 70%
B31: 全国（公立） | E31: ='Ｒ７年度 【国語】学校情報入力シート'!B4&"%" -> 66.8%
B32: 都との差（ポイント） | E32: ='Ｒ７年度 【国語】学校情報入力シート'!C4-'Ｒ７年度 【国語】学校情報入力シート'!E4 -> -5
C38: 上位 | G38: 下位
K55: 《現状把握》
K56: ●各習熟度層の割合とその課題・取り組みについて AB層の割合に関しては、適切な割合であると考える。B層上位の児童がもうひと伸び習熟を深めることができれば、より良い学習集団、環境が形成されるであろうと思われる。一方で、D層の児童の割合が高く、基本的な読む、書く、話す、聞く活動に難しさを感じている児童が多いと考えられ、是正を図る必要がある。 算数科同様、本校の重点課題はCD層の学力の底上げである。今年度の５年生の校内研究授業では、算数科同様、国語科での習熟度別学習を提案した。C・D層が少人数できめ細かい学習指導を受けることにより、質の高い作文活動や、文章・資料読解の機会が得られると考える。
K66: 《学校の取組》
K67: ・教員の指導力向上
K68: ●書字環境の適切化・共通化 二小スタンダード、二小っ子学習スタイルの設定により、低学年から高学年まで学習環境を統一して指導している。毎年度教員同士でスタンダード等の検討を行い、児童の学習を支えるとともに、教員の指導の適切化を図っている。特に国語科に関しては、書字環境を整え、「背筋ピン足はペタお腹と背中にグー一つ」等合言葉を低学年で習慣化している。高学年の取り組みは「AB層の育成」にて後述する。
K75: ・基礎学力の保障
K76: ●漢字を書く力を高めるために 毎学期２回、漢字書き取り能力向上のための取り組みである「漢字王」を行っている。各学級漢字５０問テストを行う１週間前に児童に告知し、練習期間をとる。そして実施後１００点の児童を放送で発表し、漢字学習への意欲を高める取り組みである。 ●YOMUよむワークシートの活用 毎週区から配信されている新聞記事の読解ワークシートを、朝学習や隙間時間に行っている。
K83: ・学習習慣の確立
K84: ●自主学習の習慣化、手軽に予習復習できる環境について 算数と同様に、毎学期「家庭学習強化週間」を２週間実施して、自宅での自主学習に取り組ませている。加えて、普段からタブレット学習を推奨し、学習アプリ「ミライシード・ドリルパーク」を活用して、児童自身で簡単に授業の予習復習ができるよう指導している。
B86: 《チャートの特徴》
B87: 主体的に学ぼうとする態度に関する質問に対して、全国平均に対して否定的な回答の割合が高かった。規範意識や対話的な学びに対しての回答は全国平均と同等であるため、お互い学び合うことは苦ではない様子であるが、自ら学ぼうとする姿勢に問題があると考える。 算数科と比べて、国語科への関心が劣っている。
K91: ・AB層の育成
K92: ●「読む」力の伸長について 全国や東京都との乖離がみられる「読む」力について、６年生は、チャートや表、図で整理する活動を取り入れている。文章を読み込む上で、上記のように情報を整理する活動や、文章内容を自分事のように考えをもつ活動を、国語以外の教科でも取り入れている。AB層には、文章から読み取れた内容を自分の言葉でまとめて、課題や言語作品に生かす姿勢を求める。
B93: 《家庭・地域への働きかけ》
B94: 低学年の頃から、正しい書字活動が身に付くことができるように、家庭でも様子を見ていただくように保護者会等で伝えている。 夏期の保護者面談において、１学期の学習の内容や児童の習熟の様子がわかる学習カルテを配布し、児童の学習の実態がよりご家庭に伝わるような取り組みを行っている。

Sheet 計算根拠・グラフ参照用シート (hidden)
A1: 領域名 | B1: 全国の値を１とした場合の本校の様子 | D1: 領域名 | E1: 全国の値を１とした場合の本校の様子
A2: 基本的生活習慣 | B2: ='Ｒ７年度 質問紙入力シート'!L3 -> 1.012117715 | D2: 国語平均正答率 | E2: ='Ｒ７年度 【国語】学校情報入力シート'!D4 -> 0.9730538922
A3: 自己有用感 | B3: ='Ｒ７年度 質問紙入力シート'!L7 -> 0.9622425629 | D3: 算数平均正答率 | E3: ='Ｒ７年度 【算数】学校情報入力シート'!D4 -> 0.9310344828
A4: 規範意識 | B4: ='Ｒ７年度 質問紙入力シート'!L10 -> 1.005569092
A5: 主体的な学び | B5: ='Ｒ７年度 質問紙入力シート'!L13 -> 0.8266431407
A6: 対話的な学び | B6: ='Ｒ７年度 質問紙入力シート'!L16 -> 0.965578635
A7: 国語への関心 | B7: ='Ｒ７年度 質問紙入力シート'!L20 -> 0.9326133909
A8: 算数への関心 | B8: ='Ｒ７年度 質問紙入力シート'!L24 -> 1.037752414
A11: グラフ参照用一覧【国・算】 | E11: グラフ参照用一覧【算数】 | I11: グラフ参照用一覧【国語】
A12: 領域名 | B12: 全国 | C12: 本校 | E12: 領域名 | F12: 全国 | G12: 本校 | I12: 領域名 | J12: 全国 | K12: 本校
A13: 国語平均正答率 | B13: 1 | C13: =E2 -> 0.9730538922 | E13: 算数平均正答率 | F13: 1 | G13: =E3 -> 0.9310344828 | I13: 国語平均正答率 | J13: 1 | K13: =E2 -> 0.9730538922
A14: 算数平均正答率 | B14: 1 | C14: =E3 -> 0.9310344828 | E14: 基本的生活習慣 | F14: 1 | G14: =B2 -> 1.012117715 | I14: 基本的生活習慣 | J14: 1 | K14: =B2 -> 1.012117715
A15: 基本的生活習慣 | B15: 1 | C15: =B2 -> 1.012117715 | E15: 自己有用感 | F15: 1 | G15: =B3 -> 0.9622425629 | I15: 自己有用感 | J15: 1 | K15: 0.9622425629
A16: 自己有用感 | B16: 1 | C16: 0.9622425629 | E16: 規範意識 | F16: 1 | G16: =B4 -> 1.005569092 | I16: 規範意識 | J16: 1 | K16: 1.005569092
A17: 規範意識 | B17: 1 | C17: 1.005569092 | E17: 主体的な学び | F17: 1 | G17: =B5 -> 0.8266431407 | I17: 主体的な学び | J17: 1 | K17: 0.8266431407
A18: 主体的な学び | B18: 1 | C18: 0.8266431407 | E18: 対話的な学び | F18: 1 | G18: =B6 -> 0.965578635 | I18: 対話的な学び | J18: 1 | K18: 0.965578635
A19: 対話的な学び | B19: 1 | C19: 0.965578635 | E19: 算数への関心 | F19: 1 | G19: =B8 -> 1.037752414 | I19: 国語への関心 | J19: 1 | K19: 0.9326133909
A20: 国語への関心 | B20: 1 | C20: 0.9326133909
A21: 算数への関心 | B21: 1 | C21: 1.037752414

Sheet 学校番号 (hidden)
A1: 101 | B1: 小松川小学校
A2: 102 | B2: 小松川第二小学校
A3: 103 | B3: 平井小学校
A4: 104 | B4: 平井西小学校
A5: 105 | B5: 平井東小学校
A6: 106 | B6: 平井南小学校
A7: 107 | B7: 松江小学校
A8: 108 | B8: 西一之江小学校
A9: 109 | B9: 西小松川小学校
A10: 110 | B10: 大杉小学校
A11: 111 | B11: 大杉第二小学校
A12: 112 | B12: 第三松江小学校
A13: 113 | B13: 大杉東小学校
A14: 114 | B14: 東小松川小学校
A15: 115 | B15: 船堀小学校
A16: 116 | B16: 船堀第二小学校
A17: 117 | B17: 葛西小学校
A18: 118 | B18: 二之江小学校
A19: 119 | B19: 二之江第二小学校
A20: 120 | B20: 第二葛西小学校
A21: 121 | B21: 第三葛西小学校
A22: 122 | B22: 第四葛西小学校
A23: 123 | B23: 第五葛西小学校
A24: 124 | B24: 第六葛西小学校
A25: 125 | B25: 第七葛西小学校
A26: 126 | B26: 南葛西小学校
A27: 127 | B27: 南葛西第二小学校
A28: 128 | B28: 南葛西第三小学校
A29: 129 | B29: 西葛西小学校
A30: 130 | B30: 新田小学校
A31: 131 | B31: 宇喜田小学校
A32: 132 | B32: 清新第一小学校
A33: 133 | B33: 清新ふたば小学校
A34: 134 | B34: 臨海小学校
A35: 135 | B35: 東葛西小学校
A36: 136 | B36: 瑞江小学校
A37: 137 | B37: 春江小学校
A38: 138 | B38: 新堀小学校
A39: 139 | B39: 下鎌田小学校
A40: 140 | B40: 下鎌田東小学校
A41: 141 | B41: 江戸川小学校
A42: 142 | B42: 一之江小学校
A43: 143 | B43: 一之江第二小学校
A44: 144 | B44: 鹿本小学校
A45: 145 | B45: 鹿骨松本小学校
A46: 146 | B46: 鹿骨東小学校
A47: 147 | B47: 本一色小学校
A48: 148 | B48: 篠崎小学校
A49: 149 | B49: 篠崎第二小学校
A50: 150 | B50: 篠崎第三小学校
A51: 151 | B51: 篠崎第四小学校
A52: 152 | B52: 篠崎第五小学校
A53: 153 | B53: 南篠崎小学校
A54: 154 | B54: 鎌田小学校
A55: 155 | B55: 小岩小学校
A56: 156 | B56: 東小岩小学校
A57: 157 | B57: 下小岩小学校
A58: 158 | B58: 上小岩小学校
A59: 159 | B59: 上小岩第二小学校
A60: 160 | B60: 西小岩小学校
A61: 161 | B61: 上一色南小学校
A62: 162 | B62: 南小岩小学校
A63: 163 | B63: 南小岩第二小学校
A64: 164 | B64: 中小岩小学校
A65: 165 | B65: 北小岩小学校
A67: 201 | B67: 小松川中学校
A68: 202 | B68: 小松川第二中学校
A69: 203 | B69: 松江第一中学校
A70: 204 | B70: 松江第二中学校
A71: 205 | B71: 松江第三中学校
A72: 206 | B72: 松江第四中学校
A73: 207 | B73: 松江第五中学校
A74: 208 | B74: 松江第六中学校
A75: 209 | B75: 二之江中学校
A76: 210 | B76: 葛西中学校
A77: 211 | B77: 葛西第二中学校
A78: 212 | B78: 葛西第三中学校
A79: 213 | B79: 南葛西中学校
A80: 214 | B80: 南葛西第二中学校
A81: 215 | B81: 西葛西中学校
A82: 216 | B82: 東葛西中学校
A83: 217 | B83: 清新第一中学校
A84: 218 | B84: 清新第二中学校
A85: 219 | B85: 瑞江中学校
A86: 220 | B86: 瑞江第二中学校
A87: 221 | B87: 瑞江第三中学校
A88: 222 | B88: 春江中学校
A89: 223 | B89: 鹿本中学校
A90: 224 | B90: 鹿骨中学校
A91: 225 | B91: 篠崎中学校
A92: 226 | B92: 篠崎第二中学校
A93: 227 | B93: 小岩第一中学校
A94: 228 | B94: 小岩第二中学校
A95: 229 | B95: 小岩第三中学校
A96: 230 | B96: 小岩第四中学校
A97: 231 | B97: 小岩第五中学校
A98: 232 | B98: 上一色中学校
